Cogmind - Beta 16 @@@ ROGUE MODE // 2025.11.11 @ 06:46:07 Player: shapeshifter Result: Self-destructed Performance ------------- Evolutions (2) 1000 Regions Visited (3) 600 Robots Destroyed (1) 5 Value Destroyed (34) 34 Prototype IDs (1) 20 Alien Tech Used (0) 0 Bonus (0) 0 TOTAL SCORE: 1659 Bonus ------- None Cogmind --------- Core Integrity 57/550 Matter 254/300 Energy 99/100 System Corruption 4% Temperature Cool (0) Movement Core (50) Location -8/Materials Parts ------- > --- POWER (1) -------- (None) > --- PROPULSION (5) --- Faulty Improved VTOL Module > --- UTILITY (3) ------ System Shield > --- WEAPON (2) ------- Axe > --- INVENTORY (5) ---- Ion Engine Improved Cooling System Improved Cooling System Structural Scanner Axe Peak State ------------ > --- POWER ------------ (None) > --- PROPULSION ------- Improved VTOL Module > --- UTILITY ---------- System Shield > --- WEAPON ----------- Axe > --- INVENTORY -------- Ion Engine Improved Cooling System Improved Cooling System Structural Scanner Axe [Rating: 11] Favorites ----------- Power None Propulsion Improved VTOL Module Flight Unit Improved VTOL Module Utility System Shield Hackware System Shield Weapon Axe Slashing Weapon Axe Build | -11 -10 -9 -8 ------- Run | Yrd Mat Mat Mat Slots Evolved 4 | . . 2 2 Power . | . . . . Propulsion 3 | . . 2 1 Utility 1 | . . . 1 Weapon . | . . . . Parts Attached 3 | . . . 3 Power . | . . . . Engine . | . . . . Core . | . . . . Reactor . | . . . . Propulsion 1 | . . . 1 Treads . | . . . . Leg . | . . . . Wheel . | . . . . Hover . | . . . . Flight 1 | . . . 1 Utility 1 | . . . 1 Device . | . . . . Storage . | . . . . Processor . | . . . . Hackware 1 | . . . 1 Protection . | . . . . Artifact . | . . . . Weapon 1 | . . . 1 Energy Gun . | . . . . Energy Cannon . | . . . . Ballistic Gun . | . . . . Ballistic Cannon . | . . . . Launcher . | . . . . Special Weapon . | . . . . Impact Weapon . | . . . . Slashing Weapon 1 | . . . 1 Piercing Weapon . | . . . . Special Melee Weapon . | . . . . Unidentified Prototypes 1 | . . . 1 Parts Lost . | . . . . Power . | . . . . Propulsion . | . . . . Utility . | . . . . Weapon . | . . . . Highest Loss Streak . | . . . . To Critical Strikes . | . . . . Average Backups 3 | 1 2 3 4 Power 1 | 1 2 2 1 Propulsion . | . . . . Utility 1 | . . 1 2 Weapon . | . . . . Tool/Special . | . . . . Unused Backups 6 | . . . 6 Power 2 | . . . 2 Propulsion . | . . . . Utility 3 | . . . 3 Weapon 1 | . . . 1 Tool/Special . | . . . . Average Slot Usage (%) 5 | . . . 13 Flight 1 | . . . 2 Hackware 2 | . . . 5 Slashing Weapon 2 | . . . 5 Peak Build Rating 11 | . . . 11 Average Rating 2 | . . . 5 On Entrance . | . . . . Avg Prop Armor Cover (%) 9 | . . . 9 Naked Turns 194 | . 105 50 39 Heaviest Build 3 | . . . 3 Greatest Support 3 | 3 3 3 3 Greatest Overweight (x) . | . . . . Average Overweight (x) . | . . . . Largest Inventory Capacity 5 | 5 5 5 5 Average Capacity 5 | 5 5 5 5 Most Carried 5 | 2 3 3 5 Average Carried 3 | 1 2 3 4 Final Capacity 5 | 5 5 5 5 Final Carried 5 | 2 3 3 5 Class Distribution -------------------- 100% | Mutant Dominant Class ---------------- Mutant | -10/Materials Mutant | -9/Materials Mutant | -8/Materials Resources | -11 -10 -9 -8 ----------- Run | Yrd Mat Mat Mat Matter Collected 165 | 165 . . . Remotely . | . . . . Salvage Created 34 | . 34 . . Parts 4 | . 4 . . Haulers Intercepted . | . . . . Recyclers Shooed . | . . . . Parts Field Recycled . | . . . . Retrieved Matter . | . . . . Parts Self-Destructed . | . . . . Prevented . | . . . . Parts Restored . | . . . . Kills | -11 -10 -9 -8 ------- Run | Yrd Mat Mat Mat Combat Hostiles Destroyed 1 | . 1 . . Melee 1 | . 1 . . Classes Destroyed 1 | . 1 . . Grunt 1 | . 1 . . Best Kill Streak 1 | . 1 . . Combat Bots Only 1 | . 1 . . Max Kills in Single Turn 1 | . 1 . . Gunslinging . | . . . . Exploded . | . . . . Melee 1 | . 1 . . Uniques/NPCs Destroyed . | . . . . Combat | -11 -10 -9 -8 -------- Run | Yrd Mat Mat Mat Hostile Shots Fired 138 | . 38 20 80 Missed 58 | . 19 6 33 Hits 80 | . 19 14 47 Projectile 80 | . 19 14 47 Critical Strikes 5 | . . . 5 Damage Taken 923 | . 191 183 549 Core 867 | . 191 183 493 Absorbed by Shields . | . . . . Core Remaining (%) 59 | 100 23 54 . Volleys Fired . | . . . . Largest . | . . . . Hottest . | . . . . Shots Fired . | . . . . Gun . | . . . . Cannon . | . . . . Launcher . | . . . . Special . | . . . . Kinetic . | . . . . Thermal . | . . . . Explosive . | . . . . Electromagnetic . | . . . . Robot Hit Streak . | . . . . Robot Miss Streak . | . . . . Penetration Max . | . . . . Secondary Targets . | . . . . Shots Hit Robots . | . . . . Core Hits 3 | . 1 . 2 Critical Kills . | . . . . Critical Parts Destroyed . | . . . . Critical Strikes . | . . . . Melee Attacks . | . . . . Impact . | . . . . Slashing . | . . . . Piercing . | . . . . Sneak Attacks . | . . . . Combat Hostiles . | . . . . Follow-up Attacks . | . . . . Damage Inflicted 32 | . 16 . 16 Guns . | . . . . Cannons . | . . . . Explosions . | . . . . Melee . | . . . . Ramming 32 | . 16 . 16 Kinetic . | . . . . Thermal . | . . . . Explosive . | . . . . Electromagnetic . | . . . . Impact . | . . . . Slashing . | . . . . Piercing . | . . . . Highest Corruption 4 | . . . 4 Average Corruption 3 | . . . 3 Corruption Purged . | . . . . Corruption Blocked . | . . . . Effects 2 | . . . 2 Message Errors 2 | . . . 2 Overload Shots . | . . . . Overflow Damage . | . . . . Projectiles . | . . . . Explosions . | . . . . Melee . | . . . . Knockbacks . | . . . . Impact . | . . . . Kinetic . | . . . . Secondary . | . . . . Self-Inflicted Damage 15 | . 8 . 7 Shots . | . . . . Rammed 6 | . 1 . 5 Targets Rammed 6 | . 1 . 5 Kicked . | . . . . Crushed . | . . . . Highest Temperature 245 | . . . 245 Average Temperature 136 | . . . 136 Received Heat Transfer 405 | . 54 90 261 Siege Activations . | . . . . Martial Activations . | . . . . Shielding Activations . | . . . . Robots Disrupted . | . . . . Combat Hostiles . | . . . . Robots Corrupted . | . . . . Combat Hostiles . | . . . . Parts Fried . | . . . . Impact Corruptions . | . . . . Robots Melted . | . . . . Combat Hostiles . | . . . . Parts Melted . | . . . . Heat Transferred . | . . . . Parts Sabotaged . | . . . . Parts Stolen . | . . . . Parts Stripped . | . . . . Power Chain Reactions . | . . . . Alert | -11 -10 -9 -8 ------- Run | Yrd Mat Mat Mat Maximum Alert Level . | . . . . Low Security (%) 100 | 100 100 100 100 Level 1 . | . . . . Level 2 . | . . . . Level 3 . | . . . . Level 4 . | . . . . Level 5 . | . . . . High Security . | . . . . Max Security . | . . . . Peak Influence 90 | . 35 22 90 Initial 22 | . . 22 . Average 17 | . 8 13 29 Influence Increases 200 | . 75 . 125 Destroy 0b10 Robot/C 20 | . 20 . . Destroy Leader 10 | . 10 . . Successful Hack 5 | . . . 5 Partial Spotted 15 | . . . 15 Lose Combat Pursuer 150 | . 45 . 105 Influence Decreases 110 | . 20 53 37 Entered New Map 35 | . . 33 2 Time Decay 75 | . 20 20 35 Squads Dispatched 5 | . 2 1 2 Investigation 2 | . 1 . 1 Extermination . | . . . . Reinforcement 3 | . 1 1 1 Assault . | . . . . Garrison . | . . . . Intercept . | . . . . Searches Triggered . | . . . . Construction Impeded . | . . . . Haulers Reinforced . | . . . . Active Scanning Responses . | . . . . Cargo Convoy Interrupts . | . . . . Stealth | -11 -10 -9 -8 --------- Run | Yrd Mat Mat Mat Distress Signals 3 | . . . 3 Communications Jammed . | . . . . Distress Signals . | . . . . Times Spotted 38 | . 13 10 15 Peak Tracking Total 13 | . 8 13 11 Tactical Retreats 4 | . 1 . 3 Traps | -11 -10 -9 -8 ------- Run | Yrd Mat Mat Mat Traps Triggered 4 | . 2 . 2 Indirectly . | . . . . Trap Hack Attempts . | . . . . Triggered . | . . . . Disarmed . | . . . . Reprogrammed . | . . . . Reused . | . . . . Traps Extracted . | . . . . Installed . | . . . . Triggered . | . . . . Machines | -11 -10 -9 -8 ---------- Run | Yrd Mat Mat Mat Machines Disabled . | . . . . Max in Single Turn . | . . . . Machines Repaired . | . . . . Machines Dismantled . | . . . . Machines Sabotaged . | . . . . Overloaded Fab Kills . | . . . . Hacking | -11 -10 -9 -8 --------- Run | Yrd Mat Mat Mat Machines Accessed 5 | . . 2 3 Terminals 1 | . . . 1 Fabricators . | . . . . Repair Stations . | . . . . Recycling Units 4 | . . 2 2 Scanalyzers . | . . . . Garrison Access . | . . . . Total Hacks 11 | . . 4 7 Successful 5 | . . 2 3 Failed 6 | . . 2 4 Catastrophic 1 | . . . 1 Database Lockouts . | . . . . Manual . | . . . . Terminals 3 | . . . 3 Fabricators . | . . . . Repair Stations . | . . . . Recycling Units 8 | . . 4 4 Scanalyzers . | . . . . Garrison Access . | . . . . Terminal Hacks 1 | . . . 1 Hauler Manifests 1 | . . . 1 Fabricator Hacks . | . . . . Repair Station Hacks . | . . . . Recycling Unit Hacks 4 | . . 2 2 Retrieve Components 4 | . . 2 2 Scanalyzer . | . . . . Garrison Access Hacks . | . . . . Unauthorized Hacks . | . . . . Terminals . | . . . . Fabricators . | . . . . Repair Stations . | . . . . Recycling Units . | . . . . Scanalyzers . | . . . . Garrison Access . | . . . . Data Cores Recovered . | . . . . Used . | . . . . Hacking Detections 4 | . . 2 2 Full Trace Events 1 | . . . 1 Feedback Events . | . . . . Feedback Blocked . | . . . . Robot Schematics Acquired . | . . . . Robots Built . | . . . . Authchips . | . . . . Time . | . . . . Total Robot Build Rating . | . . . . Part Schematics Acquired . | . . . . Parts Built . | . . . . Authchips . | . . . . Time . | . . . . Total Part Build Rating . | . . . . Part Studies Acquired . | . . . . Parts Repaired . | . . . . Time . | . . . . Parts Recycled . | . . . . Recycled Matter . | . . . . Retrieved Matter . | . . . . Retrieved Components 2 | . . . 2 Parts Scanalyzed . | . . . . Part Schematics Acquired . | . . . . Parts Damaged . | . . . . Bothacking | -11 -10 -9 -8 ------------ Run | Yrd Mat Mat Mat Used RIF Installer . | . . . . Robots Hacked . | . . . . Non-combat . | . . . . Combat . | . . . . Robot Hacks Applied . | . . . . Relay Couplers Released . | . . . . Fabnet Peak Effective % . | . . . . Robots Rewired . | . . . . Allies Hacked . | . . . . Hacks Repelled . | . . . . Allies | -11 -10 -9 -8 -------- Run | Yrd Mat Mat Mat Total Allies . | . . . . Largest Group . | . . . . Highest-Rated Group . | . . . . Highest-Rated Ally . | . . . . Total Orders . | . . . . Ally Attacks . | . . . . Total Damage . | . . . . Kills . | . . . . Allies Corrupted . | . . . . Allies Melted . | . . . . Intel | -11 -10 -9 -8 ------- Run | Yrd Mat Mat Mat Active Infowar (turns) . | . . . . Robot Analysis Total . | . . . . Derelict Logs Recovered . | . . . . Drone Launches . | . . . . Drone Recoveries . | . . . . Exploration | -11 -10 -9 -8 ------------- Run | Yrd Mat Mat Mat Turns Passed 301 | 16 105 50 130 Spaces Moved 566 | 28 206 99 233 Core 566 | 28 206 99 233 Treads . | . . . . Legs . | . . . . Wheels . | . . . . Hover . | . . . . Flight . | . . . . Fastest Speed 50 | 50 50 50 50 Average Speed 50 | 50 50 50 50 Slowest Speed 50 | 50 50 50 50 Overloaded Moves . | . . . . Propulsion Burnouts . | . . . . Robots Hopped . | . . . . Potential Cave-ins . | . . . . Cave-ins Triggered . | . . . . Exploration Rate (%) 27 | 3 59 16 30 Regions Visited 3 Branch Regions . Pre-discovered Areas . | . . . . Known Exits Taken . | . . . . Unknown Exits Taken 3 | 1 1 1 . Scrap Searched . | . . . . Spaces Dug . | . . . . Terrain Destroyed . | . . . . Melee . | . . . . Projectile . | . . . . AOE . | . . . . Terrain Rammed . | . . . . Walls Destroyed . | . . . . Machines Disabled . | . . . . Actions | -11 -10 -9 -8 --------- Run | Yrd Mat Mat Mat Total 579 | 29 207 98 245 Wait . | . . . . Move 564 | 27 206 98 233 Hop . | . . . . Pick Up 6 | 2 1 . 3 Fast Attach 3 | . . . 3 Attach . | . . . . Detach . | . . . . Swap . | . . . . Drop 1 | . . . 1 Fire . | . . . . Melee . | . . . . Ram 5 | . . . 5 Kick . | . . . . Crush . | . . . . Escape Stasis . | . . . . Rewire . | . . . . Trap . | . . . . Miscellaneous . | . . . . Route ------- -11/Scrapyard -10/Materials (discovered 2 exits: *Mat / [*Min]) -9/Materials -8/Materials History --------- Turn | Location | Event 10 | -11/Scrapyard | Discovered new exit (range 15) 17 | -11/Scrapyard | Entered Materials 63 | -10/Materials | Discovered new exit (range 16) 112 | -10/Materials | Core integrity fell below 50% 113 | -10/Materials | Discovered new exit (range 16) 122 | -10/Materials | Entered another Materials area 122 | -9/Materials | Evolved 2 slots: Propulsion x2 164 | -9/Materials | Discovered new exit (range 16) 172 | -9/Materials | Entered another Materials area 172 | -8/Materials | Evolved 2 slots: Propulsion x1, Utility x1 216 | -8/Materials | Core integrity fell below 50% 290 | -8/Materials | Core integrity fell below 20% 302 | -8/Materials | Self-destructed Last Messages --------------- 00240_ System corrupted (+2). 00244_ U-05 Engineer lays Concrete. 00264_ Acquired Prototype Flight Unit. 00264_ Identified Imp. VTOL Module. 00264_ Faulty integration triggers heat surge (+276). 00268_ Slammed into S-10 Pest. 00272_ Connecting with Recycling Unit... >>Retrieve(Components) Retrieving 2 components... Imp. Datajack Imp. Terrain Scanner 00284_ W-25 Informer sends out distress signal. 00290_ O-16 Technician: "IFF HANDSHAKE FAILED. SECURING TERMINAL." 00290_ Critical hit (Burn: +37). 00293_ ALERT: Hostiles spotted, dispatching reinforcements to Terminal M004. 00295_ DG3 WLIP/JI IPQ=GEG1H<|AIEZ,6PN0 00296_ S-10 Pest destroyed. 00299_ T-07 Excavator is excavating. 00302_ Connecting with Terminal... Map ----- +----------------------------------------------------+ | ??????????????????????????????????? | | ??????????????????????????????????? | | ??????????????????????????????????? | | ??????????????????????????????????? | | ??????????????????????????????????? | | ??????????????????????????????????? | | ??????????????????????????????????? | | ??????????????????????????????????? | | ??????????????????????????????????? | | ??????????????????????????????????? | | ?????????????????????????????#+#??? | | ?????????????????????????????# #??? | | ?????????????????????????????# #??? | | ?????????????????????????????# #??? | | ?????????????????????#???????# #??? | | ?????????????????????# ####### #### | | ?????????????????????# | | ?????????????????????+ | | ?????????????????????# | | ?????????#???????????####### #### | | ????????? ##???????????????# #??# | | ???????###t##??????????????# #??#/ | | ???????# #??????????????# #??#/ | | ???????+ "" #??????????????# #??## | | ???????# T #??????????????# #???? | | ???????# @ #??????????????# #???? | | ???????## ##??????????????# #???? | | ????????# #???????????????# #???? | | ????????# #???????????????# #???? | | ????????# #????????######?# #???? | | ?????#### #######+## ### #???? | | ?????# =%[ #???? | | ?????# = +???? | | ?????###+#########+## ######???? | | ????????????????? ######????????? | | ????????????????? ??????????????? | | ???????????????? #?????????????? | | ???????????????? #?????????????? | | ????????????????####??????????????? | | | | | | | | | | | | | | | | | | | | | | | +----------------------------------------------------+ Best States ------------- Heat Dissipation 31 Energy Generation 5 Energy Capacity 100 Matter Stores 273 Matter Capacity 300 Sight Range 16 Terrain Scan Density 10 Evasion (%) 50 Defensive Hacking 10 Item Schematics ----------------- None Robot Schematics ------------------ None Fabricated ------------ Nothing Repaired ---------- Nothing Studied --------- None Alien Tech Used ----------------- None Achievements -------------- None Challenges ------------ None Game ------ Seed GuidanceOpticalShearcannon Manual? 0 Play Time 00:05:35 Cumulative 489.0 hours Start 2025.11.11 @ 06:42:20 End 2025.11.11 @ 06:46:07 Sessions 1 Manual Loads 0 Difficulty Rogue Special Mode None Game No. 651 Rogue 651 Adventurer 0 Explorer 0 Win Type - Total 15 Types 7/0/2/2/1/0/2/1/0/0 Lore% 90 Gallery% 85 Achievement% 65 Wizard Run 0 Options --------- Layout 0 ASCII 0 Keyboard 0 Movement Mouse Keybinds 0 Fullscreen 1 Font 24/Terminus Map View 76x50 Zoom Use 0% Tactical HUD 1 Map Filters NONE Filters NONE Steam 1 RUN: 3e439c00-e203-4398-b18f-bcaa878c9f78